[Event "1st Serbian League 2022"]
[Site "Vrnjacka Banja"]
[Date "2022.09.21"]
[Round "2.1"]
[White "Tadic, Stefan"]
[Black "Puranik, Abhimanyu"]
[Result "0-1"]
[ECO "A37"]
[WhiteElo "2318"]
[BlackElo "2603"]
[Annotator "TA"]
[PlyCount "68"]
[EventDate "2022.09.20"]
[EventType "team-tourn"]
[EventCountry "SRB"]
[SourceTitle "playchess.com"]
[Source "ChessBase"]
[SourceQuality "1"]
[TimeControl "40/5400+30:1800+30"]

{[%evp 11,68,8,4,9,11,10,6,2,11,14,13,-14,-18,-28,-29,-33,-34,-60,-45,-58,-41,-39,-37,-37,-27,-90,-77,-84,-58,-72,-42,-39,-10,-32,-28,-22,-7,-10,-10,-16,0,-134,-146,-164,-175,-284,-264,-296,-289,-746,-770,-1200,-1192,-1497,-1409,-1791,-1759,-1225,-1211]} 1. Nf3 {[%emt 0:00:22]} c5 {[%emt 0:00:49]} 2. c4 {[%emt 0:00:45]} Nc6 {[%emt 0:00:07]} 3. Nc3 {[%emt 0:00:54]} g6 {[%emt 0:00:05]} 4. g3 {[%emt 0:01:17]} Bg7 {[%emt 0:00:05]} 5. Bg2 {[%emt 0:00:54]} d6 {[%emt 0:00:05]} 6. O-O {[%emt 0:00:58]} Bf5 {[%emt 0:03:08] 6...e6 is a critical line.} 7. d3 {[%emt 0:08:02] A37: Symmetrical English vs ...g6: 4 Bg2 Bg7 5 Nf3.} Qd7 {[%emt 0:00:17]} 8. Nd5 {[%emt 0:05:03]} Nf6 {[%emt 0:03:13][%cal Bg8f6,Bf6d5,Bd5e3][%mdl 32]} 9. Bd2 {[%emt 0:10:20] The position is equal.} O-O {[%emt 0:07:17]} 10. Bc3 {[%emt 0:08:29]} Nxd5 {[%emt 0:15:16] [#]} 11. Bxg7 $146 {[%emt 0:05:33]} ({Predecessor:} 11. cxd5 Nd4 12. Nh4 Bg4 13. f3 Bh3 14. Bxh3 Qxh3 15. e3 Nf5 16. Nxf5 Qxf5 17. e4 {1-0 (59) Grischuk,A (2766)-Anand,V (2759) Paris 2018}) 11... Ne3 {[%emt 0:03:26]} 12. fxe3 {[%emt 0:03:32]} Kxg7 {[%emt 0:00:04]} 13. Rf2 {[%emt 0:14:54]} f6 {[%emt 0:05:20]} 14. Nd2 {[%emt 0:03:22]} Rab8 {[%emt 0:04:54]} 15. Nb1 {[%emt 0:08:36]} b5 {[%emt 0:03:55]} 16. cxb5 {[%emt 0:00:37]} Rxb5 {[%emt 0:00:09]} 17. b3 {[%emt 0:05:24]} Bh3 {[%emt 0:05:17]} 18. Bh1 {[%emt 0:01:27]} (18. Nc3 $11 Rbb8 19. Bxc6 Qxc6 20. Qd2) 18... Rbb8 $17 {[%emt 0:02:32]} 19. Nc3 {[%emt 0:00:13]} Ne5 {[%emt 0:01:56]} 20. Qd2 {[%emt 0:02:30]} Rfc8 {[%emt 0:05:29]} 21. Nd5 {[%emt 0:01:05]} g5 {[%emt 0:02:01]} 22. e4 {[%emt 0:05:00]} h5 {[%emt 0:00:41]} 23. Bg2 {[%emt 0:02:44] Hoping for Bxh3.} Bxg2 {[%emt 0:04:10]} 24. Rxg2 {[%emt 0:00:06]} Rh8 {[%emt 0:05:36]} 25. Ne3 {[%emt 0:01:25]} Kf7 {[%emt 0:00:59]} 26. Nf5 {[%emt 0:06:14]} (26. Rf1 $11 {keeps the balance.}) 26... d5 $36 {[%emt 0:02:56][%cal Bd6d5,Bd5e4,Be4d3][%mdl 2080] White is under strong pressure.} 27. Rf1 {[%emt 0:01:40]} dxe4 {[%emt 0:01:33]} 28. h4 {[%emt 0:02:16]} (28. Qc1 {was necessary.}) 28... g4 {[%emt 0:03:36][%cal Oe5f3]} ({Weaker is} 28... exd3 29. hxg5 e6 30. Nh4 $11 (30. Nh6+ Kg7 $11)) 29. Rgf2 {[%emt 0:00:42]} exd3 {[%emt 0:00:40] Active counter play!} 30. Nxe7 $2 {[%emt 0:00:34] [#]} (30. Re1) 30... Qxe7 $19 {[%emt 0:03:31] Black is clearly winning.} 31. Rxf6+ {[%emt 0:00:13]} Qxf6 {[%emt 0:00:18]} 32. Rxf6+ {[%emt 0:00:05]} Kxf6 {[%emt 0:00:02]} 33. Qf4+ {[%emt 0:00:11]} Ke6 {[%emt 0:00:14]} 34. exd3 {[%emt 0:00:05]} Rhf8 {[%emt 0:02:23] Weighted Error Value: White=0.93/Black=0.08 (flawless)} 0-1

[Event "1st Serbian League 2022"]
[Site "Vrnjacka Banja"]
[Date "2022.09.21"]
[Round "2.2"]
[White "Gagunashvili, Merab"]
[Black "Ivanovic, Marko"]
[Result "1/2-1/2"]
[ECO "E32"]
[WhiteElo "2552"]
[BlackElo "2265"]
[Annotator "TA"]
[PlyCount "74"]
[EventDate "2022.09.20"]
[EventType "team-tourn"]
[EventCountry "SRB"]
[SourceTitle "playchess.com"]
[Source "ChessBase"]
[SourceQuality "1"]
[TimeControl "40/5400+30:1800+30"]

{[%evp 22,74,17,9,9,-57,-45,-50,-47,-42,-29,-62,-19,-10,-5,-14,-8,-13,16,0,23,24,72,54,100,95,106,88,118,122,143,118,118,120,145,0,0,0,0,0,0,0,0,0,0,0,0,0,0,0,0,0,0,0,0]} 1. d4 {[%emt 0:00:06]} Nf6 {[%emt 0:00:23]} 2. c4 {[%emt 0:00:12]} e6 {[%emt 0:00:13]} 3. Nc3 {[%emt 0:00:11]} Bb4 {[%emt 0:00:13]} 4. Qc2 {[%emt 0:00:29]} O-O {[%emt 0:00:38]} 5. a3 {[%emt 0:00:41]} Bxc3+ {[%emt 0:00:08]} 6. Qxc3 {[%emt 0:00:04]} b6 {[%emt 0:00:09]} 7. Nf3 {[%emt 0:03:52]} Bb7 {[%emt 0:00:24]} 8. e3 {[%emt 0:01:50]} d6 {[%emt 0:00:27]} 9. b4 {[%emt 0:01:53]} Nbd7 {[%emt 0:03:10]} 10. Bb2 {[%emt 0:00:54]} Ne4 {[%emt 0:01:19]} 11. Qc2 {[%emt 0:00:19]} f5 {[%emt 0:00:36]} 12. Be2 {[%emt 0:03:08]} Ng5 {[%emt 0:20:33] E32: Nimzo-Indian: Classical (4 Qc2): 4...0-0.} 13. Nxg5 {[%emt 0:29:56]} ({White should try} 13. h4 $11 Ne4 14. Bd3) 13... Qxg5 $15 {[%emt 0:00:21]} 14. Bf3 {[%emt 0:00:19]} Bxf3 {[%emt 0:01:41] Black is slightly better.} 15. gxf3 {[%emt 0:00:02] [#]} c6 $146 {[%emt 0:18:07]} ({Predecessor:} 15... f4 16. e4 Qg2 17. Ke2 Qh3 18. Rag1 Rf7 19. Qa4 Nf8 20. Qc6 Rd8 21. Qb5 d5 {0-1 (30) Dolgov,A-Proshkin,A RCCA email 2003}) 16. f4 {[%emt 0:02:33]} Qh5 {[%emt 0:06:33]} (16... Qg2 {keeps more tension.} 17. Ke2 Qg4+ 18. Kf1 Qh3+) 17. Qe2 {[%emt 0:04:20]} Qf7 {[%emt 0:01:48]} 18. O-O {[%emt 0:03:52]} d5 {[%emt 0:02:59]} 19. Rfc1 {[%emt 0:03:09]} Nf6 {[%emt 0:10:30]} 20. a4 {[%emt 0:06:56][%cal Ba3a4,Ba4b5][%mdl 32]} Ne4 {[%emt 0:05:01]} 21. c5 {[%emt 0:06:48]} Rac8 {[%emt 0:10:03]} (21... Qg6+ $11 22. Kh1 Rfb8) 22. Rc2 $16 {[%emt 0:01:33]} h6 {[%emt 0:01:35]} (22... Qb7 $14) 23. Rac1 {[%emt 0:28:53]} Qb7 {[%emt 0:06:18]} 24. b5 {[%emt 0:00:00]} cxb5 {[%emt 0:01:35]} 25. axb5 {[%emt 0:00:00]} Kh7 {[%emt 0:01:49]} 26. f3 {[%emt 0:00:00]} Nf6 {[%emt 0:00:06]} 27. Ba3 {[%emt 0:00:00] And now c6 would win.} Rg8 {[%emt 0:00:15]} 28. cxb6 {[%emt 0:00:00]} (28. Kh1 $16) 28... Rxc2 $1 $11 {[%emt 0:00:14] The position is equal.} 29. Rxc2 {[%emt 0:00:00] Hoping for bxa7.} axb6 {[%emt 0:00:50]} 30. Bd6 {[%emt 0:00:00]} Rc8 {[%emt 0:00:27][%cal Oc8c4]} 31. Be5 {[%emt 0:00:00]} Qd7 {[%emt 0:00:10]} 32. Bxf6 {[%emt 0:01:05]} gxf6 {[%emt 0:00:04]} 33. Rxc8 {[%emt 0:00:07]} Qxc8 {[%emt 0:00:05] KQ-KQ} 34. Qa2 {[%emt 0:00:38]} Kg6 {[%emt 0:00:49]} 35. Qa3 {[%emt 0:00:30]} Qc2 {[%emt 0:01:57]} 36. Qf8 {[%emt 0:01:09]} Qd1+ {[%emt 0:00:04]} 37. Kg2 {[%emt 0:00:53]} Qe2+ {[%emt 0:00:02] Weighted Error Value: White=0.15 (very precise) /Black=0.14 (very precise)} 1/2-1/2

[Event "1st Serbian League 2022"]
[Site "Vrnjacka Banja"]
[Date "2022.09.21"]
[Round "2.3"]
[White "Sarenac, Ivan"]
[Black "Pap, Misa"]
[Result "1-0"]
[ECO "D00"]
[WhiteElo "2402"]
[BlackElo "2381"]
[Annotator "TA"]
[PlyCount "105"]
[EventDate "2022.09.20"]
[EventType "team-tourn"]
[EventCountry "SRB"]
[SourceTitle "playchess.com"]
[Source "ChessBase"]
[SourceQuality "1"]
[TimeControl "40/5400+30:1800+30"]

{[%evp 9,105,0,19,18,23,0,29,17,43,33,36,36,45,31,36,37,39,26,27,29,44,41,33,38,62,53,68,54,58,49,222,82,567,583,596,449,588,569,589,588,539,295,283,296,289,286,305,177,165,161,181,180,236,244,243,247,241,238,224,209,462,427,1031,1031,967,937,1031,1031,1031,1031,992,967,29976,29977,29977,29978,29978,29979,29979,29977,29977,29978,29978,29979,29984,29985,29985,29986,29986,29987,29987,29988,29989,29990,29991,29992,29992,29993]} 1. d4 {[%emt 0:00:03]} Nf6 {[%emt 0:00:11]} 2. Nc3 {[%emt 0:00:07]} d5 {[%emt 0:00:08]} 3. Bf4 {[%emt 0:00:06]} e6 {[%emt 0:01:53]} 4. e3 {[%emt 0:00:12]} a6 {[%emt 0:02:01]} 5. g4 {[%emt 0:00:14]} c5 {[%emt 0:17:25]} 6. g5 {[%emt 0:01:34] D00: 1 d4 d5: Unusual lines.} Ng8 {[%emt 0:00:05]} 7. h4 {[%emt 0:02:20]} Nc6 {[%emt 0:00:14]} 8. Nf3 {[%emt 0:00:32] White has an edge.} Bd6 {[%emt 0:05:46] [#]} 9. Bxd6 $146 {[%emt 0:07:20]} ({Predecessor:} 9. Ne5 Nge7 10. h5 Bxe5 11. dxe5 Qc7 12. Qf3 Nxe5 13. Qg3 N7c6 14. Bg2 f6 15. h6 fxg5 16. Qxg5 gxh6 {1-0 (32) Damjanovic,V (2393)-Tristan,L (2535) Chess.com INT 2021}) 9... Qxd6 {[%emt 0:00:07]} 10. dxc5 {[%emt 0:00:39]} Qxc5 {[%emt 0:00:20]} 11. Qd2 {[%emt 0:00:09]} Nge7 {[%emt 0:08:00]} 12. O-O-O {[%emt 0:04:17]} b5 {[%emt 0:11:36]} 13. Kb1 {[%emt 0:16:52]} b4 {[%emt 0:06:29]} 14. Na4 {[%emt 1:03:05]} Qa5 {[%emt 0:00:10]} 15. b3 {[%emt 0:00:00]} e5 {[%emt 0:00:30]} 16. h5 {[%emt 0:00:00][%cal Bh4h5,Bh5h6][%mdl 32]} Bf5 {[%emt 0:04:23]} 17. Nh4 {[%emt 0:00:00]} Bg4 {[%emt 0:06:33]} 18. Be2 {[%emt 0:00:00]} Bxe2 {[%emt 0:00:05]} 19. Qxe2 {[%emt 0:00:00]} Na7 $2 {[%emt 0:00:04] Black is on the road to losing.} (19... O-O $14) 20. g6 {[%emt 0:00:00]} (20. Qg4 $18) 20... f5 $2 {[%emt 0:12:12][%mdl 8192]} (20... fxg6 $16 {is tougher.} 21. hxg6 h6) 21. h6 $18 {[%emt 0:00:00]} hxg6 {[%emt 0:00:32]} 22. hxg7 {[%emt 0:00:00]} Rg8 {[%emt 0:00:02] [#]} 23. Nxg6 $1 {[%emt 0:00:00][%mdl 512]} Nxg6 {[%emt 0:00:33]} 24. Qh5 {[%emt 0:00:00][%csl LRf5,LRg6]} Rxg7 {[%emt 0:00:27]} 25. Rhg1 {[%emt 0:00:00]} O-O-O {[%emt 0:02:32] Hoping for ...Rd6.} 26. Rxg6 {[%emt 0:00:00]} (26. Qxf5+ $6 Kb8 $16) 26... Rxg6 {[%emt 0:01:37]} 27. Qxg6 {[%emt 0:00:00] Strongly threatening Rh1.} Kb8 {[%emt 0:04:22]} 28. Qxf5 {[%emt 0:00:00]} (28. Rh1 $142 {Threatens to win with Rh7.} Qc7 29. Rh7 (29. Qxa6 Rc8 $18) (29. Qxf5 Nb5 $16)) 28... Qc7 {[%emt 0:00:52]} 29. Rh1 {[%emt 0:00:00] Rh7 is the strong threat.} Nb5 {[%emt 0:00:37]} 30. Rh7 $36 {[%emt 0:00:00][%mdl 2048] White has strong initiative.} Qd6 {[%emt 0:01:19]} (30... Nc3+ $142 31. Nxc3 Qxc3) 31. Qf7 {[%emt 0:00:00][%csl Gh7][%cal Rf7b7]} Nc7 {[%emt 0:05:39]} 32. Qg7 {[%emt 0:03:04] aiming for Rh6.} Re8 {[%emt 0:05:29]} 33. Rh6 {[%emt 0:01:40]} Re6 {[%emt 0:00:06]} 34. Qg8+ {[%emt 0:00:33]} ({Resist} 34. Rh7 Re8 35. Nb2 a5) 34... Ka7 $2 {[%emt 0:00:20]} (34... Re8 {keeps fighting.} 35. Qxe8+ (35. Rxd6 Rxg8 36. Rb6+ Kc8 $18) 35... Nxe8 36. Rxd6 Nxd6) 35. Rh7 {[%emt 0:00:36]} Kb7 {[%emt 0:02:13] [#]} (35... Rh6 $142 36. Rxh6 Qxh6) 36. Qxe6 $3 {[%emt 0:00:17][%mdl 512]} Qxe6 {[%emt 0:00:05]} 37. Nc5+ {[%emt 0:00:02]} Kb8 {[%emt 0:00:17]} 38. Nxe6 {[%emt 0:00:07]} Nxe6 {[%emt 0:00:02][%mdl 4096] Endgame KR-KN} 39. Re7 {[%emt 0:00:17]} Nc5 {[%emt 0:00:04]} 40. Rxe5 {[%emt 0:00:08]} Ne4 {[%emt 0:00:04] [#]} 41. Rxe4 $1 {[%emt 0:30:52] White mates.} dxe4 {[%emt 0:30:04] KP-KP} 42. c3 {[%emt 0:00:32]} a5 {[%emt 0:00:03]} 43. cxb4 {[%emt 0:00:31]} axb4 {[%emt 0:00:04]} 44. a3 {[%emt 0:00:05][%cal Ba2a3,Ba3b4][%mdl 32]} Kc7 {[%emt 0:00:03]} 45. axb4 {[%emt 0:00:19]} Kc6 {[%emt 0:00:03]} 46. Kc2 {[%emt 0:00:06]} Kb5 {[%emt 0:00:01]} 47. Kc3 {[%emt 0:00:06]} Kb6 {[%emt 0:00:03]} 48. Kd4 {[%emt 0:00:03]} Kb5 {[%emt 0:00:03]} 49. Kxe4 {[%emt 0:00:05]} Kxb4 {[%emt 0:00:04]} 50. f4 {[%emt 0:00:05][%cal Bf2f4,Bf4f5,Bf5f6,Bf6f7][%mdl 32]} Kxb3 {[%emt 0:00:04]} 51. f5 {[%emt 0:00:04]} Kc4 {[%emt 0:00:14]} 52. f6 {[%emt 0:00:05]} Kc5 {[%emt 0:00:04]} 53. f7 {[%emt 0:00:05] Weighted Error Value: White=0.22 (precise) /Black=0.58} 1-0

[Event "1st Serbian League 2022"]
[Site "Vrnjacka Banja"]
[Date "2022.09.21"]
[Round "2.4"]
[White "Savic, Miodrag R"]
[Black "Arsovic, Zoran"]
[Result "1/2-1/2"]
[ECO "B22"]
[WhiteElo "2406"]
[BlackElo "2362"]
[Annotator "TA"]
[PlyCount "113"]
[EventDate "2022.09.20"]
[EventType "team-tourn"]
[EventCountry "SRB"]
[SourceTitle "playchess.com"]
[Source "ChessBase"]
[SourceQuality "1"]
[TimeControl "40/5400+30:1800+30"]

{[%evp 20,113,17,0,0,0,0,0,0,-8,-8,-8,-8,-8,-5,-11,-6,-23,-13,-15,-22,-61,-56,-70,-54,-62,-65,-84,-89,-97,-95,-91,-96,-101,-91,-103,-99,-95,0,-87,-80,-152,-47,-54,-51,-88,-41,-47,-44,-39,-22,-72,-72,-60,-67,-78,-54,-59,-41,-53,-37,-44,0,0,0,0,0,0,0,0,0,0,0,0,0,0,0,0,0,0,0,0,0,0,0,0,0,0,0,0,0,0,0,0,0,0]} 1. e4 {[%emt 0:00:14]} c5 {[%emt 0:00:24]} 2. c3 {[%emt 0:00:33]} d5 {[%emt 0:00:33]} 3. exd5 {[%emt 0:00:35]} Qxd5 {[%emt 0:00:10]} 4. Nf3 {[%emt 0:00:21]} Nf6 {[%emt 0:00:37]} 5. Na3 {[%emt 0:01:58]} e6 {[%emt 0:04:43]} 6. Be2 {[%emt 0:04:13]} Nc6 {[%emt 0:04:51]} 7. O-O {[%emt 0:03:17]} Be7 {[%emt 0:02:49]} 8. d4 {[%emt 0:02:29]} O-O {[%emt 0:04:08]} 9. Nb5 {[%emt 0:02:15]} Qd8 {[%emt 0:01:04]} 10. dxc5 {[%emt 0:00:40]} Bxc5 {[%emt 0:00:33]} 11. Bf4 {[%emt 0:02:05]} a6 {[%emt 0:00:51] was the old line (11...Nd5). B22: Sicilian: 2 c3.} (11... Nd5 12. Bg3 a6 13. Nbd4 Nxd4 14. Nxd4 Bd6 15. Bf3 Bxg3 16. hxg3 Nf6 17. Nb3 Qc7 18. Qd4 Bd7 19. Rfd1 Bc6 20. Qd6 Rfc8 21. Qxc7 Rxc7 {½-½ (73) Savic,M (2533)-Arsovic,Z (2457) Vrsac 2007}) 12. Nbd4 {[%emt 0:00:48]} Nxd4 {[%emt 0:00:48]} 13. Nxd4 {[%emt 0:02:36]} Bxd4 {[%emt 0:00:46]} 14. cxd4 {[%emt 0:00:12] [#]} Bd7 $146 {[%emt 0:00:25][%cal Bc8d7,Bd7b5,Bb5c6][%mdl 32]} ({Predecessor:} 14... Nd5 15. Be5 Bd7 16. Qb3 Qb6 17. Qxb6 Nxb6 18. Bf3 Nd5 {½-½ (18) Yartsev,V (2202)-Dolin,B (2367) ICCF email 2010}) 15. Bf3 {[%emt 0:05:41]} Bb5 {[%emt 0:03:24]} 16. Re1 {[%emt 0:01:03]} ({But not} 16. Bxb7 Ra7 17. Bf3 Bxf1 18. Qxf1 Nd5 $17) 16... Nd5 {[%emt 0:00:37]} 17. Be5 {[%emt 0:04:49]} Bc6 {[%emt 0:09:26]} (17... Rc8 {with more complications.} 18. Qd2 h6 19. Be4 Qd7) 18. Qb3 {[%emt 0:04:32]} (18. Be4 {keeps more tension.} Rc8 19. Qd2 Ne7 20. Bc2) 18... Qd7 {[%emt 0:03:28]} 19. Rac1 {[%emt 0:06:14]} (19. Be4 {with more complications.} Ne7 20. Qg3 f6 21. Bd6) 19... Ne7 {[%emt 1:00:23]} 20. Rc3 {[%emt 0:19:31]} Rac8 {[%emt 0:00:00]} 21. h4 {[%emt 0:07:00]} Bd5 {[%emt 0:00:00]} 22. Bxd5 {[%emt 0:05:08]} Nxd5 {[%emt 0:00:00]} 23. Rxc8 {[%emt 0:03:59]} Rxc8 {[%emt 0:00:00]} 24. h5 {[%emt 0:00:02]} f6 {[%emt 0:00:00]} 25. Bg3 {[%emt 0:00:04]} h6 {[%emt 0:00:00]} 26. Qf3 {[%emt 0:05:09]} Rc6 {[%emt 0:00:00]} 27. Bf4 {[%emt 0:02:29]} Rc2 {[%emt 0:00:00]} 28. Qb3 {[%emt 0:02:26]} Rc6 {[%emt 0:00:00]} (28... Qc6 $17 29. Bd6 Rd2 30. Rxe6 Rxd4) 29. Bd2 {[%emt 0:01:27]} (29. Qf3 $1 $11) 29... Qf7 {[%emt 0:00:00]} 30. Qg3 {[%emt 0:03:08]} (30. Ba5 $142) 30... Kh7 {[%emt 0:00:00]} (30... Qxh5 $17 {Hoping for ...Rc2.} 31. Qb8+ Kh7 32. Qxb7 Rb6) 31. Qf3 {[%emt 0:00:30]} Kh8 {[%emt 0:00:00]} (31... Rd6 {is interesting.} 32. g4 Qd7 33. Bc3 Kg8) 32. Bf4 {[%emt 0:02:34]} b5 {[%emt 0:00:00]} (32... Rc4 $17 33. Qd3 Rc6) 33. Rc1 $15 {[%emt 0:03:01]} Rxc1+ {[%emt 0:00:00]} 34. Bxc1 {[%emt 0:00:02][%mdl 4096] Endgame KQB-KQN} Qc7 {[%emt 0:00:00]} (34... Kh7 {looks sharper.} 35. g4 f5 36. Kg2 Qc7) 35. Qd1 {[%emt 0:00:25]} (35. Bd2 $11 {remains equal.}) 35... Kg8 $17 {[%emt 0:00:38]} 36. g3 {[%emt 0:00:11]} Kf7 {[%emt 0:00:48]} 37. a3 {[%emt 0:00:38]} Qc4 {[%emt 0:02:55]} 38. Be3 {[%emt 0:00:52]} a5 {[%emt 0:01:17]} 39. Qb1 {[%emt 0:03:47]} f5 {[%emt 0:02:35]} 40. Qd1 $1 {[%emt 0:00:24]} Kf8 {[%emt 0:00:56]} 41. Bf4 {[%emt 0:31:09] The position is equal.} Nxf4 {[%emt 0:18:17]} 42. gxf4 $11 {[%emt 0:00:00] KQ-KQ} Kf7 {[%emt 0:01:18]} 43. Kh2 {[%emt 0:00:00]} b4 {[%emt 0:03:21]} 44. axb4 {[%emt 0:00:00]} axb4 {[%emt 0:00:10]} 45. b3 {[%emt 0:00:00]} Qc7 {[%emt 0:03:16]} 46. Kg3 {[%emt 0:00:00]} Qc3+ {[%emt 0:00:30]} 47. f3 {[%emt 0:00:00]} Qc6 {[%emt 0:01:02]} 48. Qa1 {[%emt 0:00:00]} Qd7 {[%emt 0:00:46]} 49. Kf2 {[%emt 0:00:00]} g6 {[%emt 0:00:45]} 50. hxg6+ {[%emt 0:00:00]} Kxg6 {[%emt 0:00:05]} 51. Kg3 {[%emt 0:00:00]} Kf7 {[%emt 0:01:21]} 52. Kg2 {[%emt 0:00:00]} Kg6 {[%emt 0:01:46]} 53. Qa6 {[%emt 0:00:00]} Qd5 {[%emt 0:00:57]} 54. Qc8 {[%emt 0:00:00]} Kg7 {[%emt 0:01:07]} 55. Qc7+ {[%emt 0:00:00]} Kg6 {[%emt 0:00:30]} 56. Qc8 {[%emt 0:00:00]} Kg7 {[%emt 0:00:10]} 57. Qc7+ {[%emt 0:00:00] Weighted Error Value: White=0.12 (very precise) /Black=0.12 (very precise)} 1/2-1/2

[Event "1st Serbian League 2022"]
[Site "Vrnjacka Banja"]
[Date "2022.09.21"]
[Round "2.5"]
[White "Radusinovic, Lazar"]
[Black "Radovanovic, Mihajlo"]
[Result "0-1"]
[ECO "D02"]
[WhiteElo "2308"]
[BlackElo "2438"]
[Annotator "TA"]
[PlyCount "28"]
[EventDate "2022.09.20"]
[EventType "team-tourn"]
[EventCountry "SRB"]
[SourceTitle "playchess.com"]
[Source "ChessBase"]
[SourceQuality "1"]
[TimeControl "40/5400+30:1800+30"]

{[%evp 9,28,0,2,0,-2,-31,-14,-16,0,-28,6,9,2,-52,-75,-72,-72,-465,-447,-652,-648]} 1. d4 {[%emt 0:00:02]} Nf6 {[%emt 0:01:50]} 2. Nf3 {[%emt 0:00:08]} d5 {[%emt 0:00:17]} 3. g3 {[%emt 0:00:06]} c5 {[%emt 0:00:32]} 4. Bg2 {[%emt 0:00:06]} cxd4 {[%emt 0:00:12]} 5. O-O {[%emt 0:00:07]} h6 {[%emt 0:00:44]} 6. Nxd4 {[%emt 0:03:18][%cal Oc2c4] D02: 1 d4 d5 2 Nf3 sidelines, including 2...Nf6 3 g3 and 2...Nf6 3 Bf4.} e5 {[%emt 0:01:25]} 7. Nf3 {[%emt 0:00:05]} Nc6 {[%emt 0:02:17]} 8. c4 {[%emt 0:00:06] The position is equal.} Be6 {[%emt 0:13:12]} 9. Qa4 {[%emt 0:21:28] [#]} Qd7 $146 {[%emt 0:04:33]} ({Don't play} 9... dxc4 10. Nxe5 Rc8 11. Nxc6 bxc6 12. Be3 $16 (12. Bxc6+ Bd7 $16) (12. Qxa7 Bd5 $16)) ({Predecessor:} 9... Bd7 10. cxd5 Nxd5 11. Nxe5 Nxe5 12. Qe4 Qf6 13. Qxd5 Bc6 14. Qb3 Bxg2 15. Kxg2 Bc5 16. Qxb7 {1-0 (75) Partzsch,L (2167)-Pollmueller,M (2076) Dortmund 2016}) 10. cxd5 {[%emt 0:12:32]} Nxd5 {[%emt 0:00:07][%cal Bf6d5,Bd5b6,Bb6a4,Ba4c3][%mdl 32]} ({Don't take} 10... Bxd5 11. Nc3 $16) 11. Rd1 {[%emt 0:04:00]} (11. Nc3 $11 Rd8 12. Nxd5 Qxd5 13. Nd2) 11... Nb6 $1 $15 {[%emt 0:01:40]} 12. Rxd7 {[%emt 0:10:12]} Nxa4 {[%emt 0:00:19]} 13. Rxb7 {[%emt 0:00:17][%mdl 8192]} (13. Rd1 $17) 13... O-O-O $19 {[%emt 0:00:09] [#] Threatens to win with ...Rd1+.} 14. Nc3 {[%emt 0:05:50] Inhibits Rd1+.} (14. Nbd2 $142 Kxb7 15. Nxe5) 14... Nxc3 {[%emt 0:01:01] Weighted Error Value: White=1.08/Black=0.08 (flawless)} 0-1